[Event "Titled Tuesday Blitz March 01 Early 2022"]
[White "Tillis., Bryan"]
[Black "Barbashin, Igor"]
[WhiteFideId "2059053"]
[BlackFideId "4155718"]
[WhiteElo "2478"]
[BlackElo "2138"]
[Result "1-0"]
[Round "02"]
[TimeControl "180+1"]
[Date "2022.03.01"]
[WhiteClock "0:00:08"]
[BlackClock "0:00:16"]

1. c4 {[%clk 0:03:00]}  Nf6 {[%clk 0:02:58]} 2. Nf3 {[%clk 0:03:00]}  e6 {[%clk 0:02:58]} 3. g3 {[%clk 0:03:01]}  c5 {[%clk 0:02:57]} 4. Bg2 {[%clk 0:03:01]}  Nc6 {[%clk 0:02:57]} 5. O-O {[%clk 0:03:02]}  Be7 {[%clk 0:02:57]} 6. Nc3 {[%clk 0:03:02]}  O-O {[%clk 0:02:56]} 7. d4 {[%clk 0:03:02]}  cxd4 {[%clk 0:02:56]} 8. Nxd4 {[%clk 0:03:03]}  d5 {[%clk 0:02:54]} 9. cxd5 {[%clk 0:03:01]}  exd5 {[%clk 0:02:53]} 10. Be3 {[%clk 0:02:46]}  Re8 {[%clk 0:02:47]} 11. h3 {[%clk 0:02:37]}  Bb4 {[%clk 0:02:44]} 12. Rc1 {[%clk 0:02:29]}  Rxe3 {[%clk 0:02:42]} 13. fxe3 {[%clk 0:02:29]}  Qe7 {[%clk 0:02:40]} 14. Nxc6 {[%clk 0:02:06]}  Qxe3+ {[%clk 0:02:37]} 15. Kh2 {[%clk 0:02:06]}  bxc6 {[%clk 0:02:37]} 16. Qd3 {[%clk 0:02:03]}  Qe5 {[%clk 0:02:34]} 17. e4 {[%clk 0:01:54]}  d4 {[%clk 0:02:28]} 18. Ne2 {[%clk 0:01:48]}  c5 {[%clk 0:02:15]} 19. Nf4 {[%clk 0:01:31]}  a5 {[%clk 0:01:59]} 20. a3 {[%clk 0:01:17]}  Ba6 {[%clk 0:01:58]} 21. Qc2 {[%clk 0:01:17]}  Bxf1 {[%clk 0:01:48]} 22. Rxf1 {[%clk 0:01:15]}  Rd8 {[%clk 0:01:40]} 23. axb4 {[%clk 0:01:14]}  axb4 {[%clk 0:01:41]} 24. Nd5 {[%clk 0:01:13]}  d3 {[%clk 0:01:24]} 25. Qxd3 {[%clk 0:00:44]}  Nxd5 {[%clk 0:01:22]} 26. exd5 {[%clk 0:00:44]}  Qxb2 {[%clk 0:01:22]} 27. d6 {[%clk 0:00:35]}  Qd4 {[%clk 0:01:16]} 28. Qxd4 {[%clk 0:00:30]}  cxd4 {[%clk 0:01:15]} 29. Rb1 {[%clk 0:00:31]}  Rxd6 {[%clk 0:01:13]} 30. Rxb4 {[%clk 0:00:31]}  g6 {[%clk 0:01:14]} 31. Rb2 {[%clk 0:00:31]}  Kg7 {[%clk 0:01:13]} 32. Rd2 {[%clk 0:00:31]}  Kf6 {[%clk 0:01:12]} 33. Kg1 {[%clk 0:00:32]}  Ke5 {[%clk 0:01:10]} 34. Kf2 {[%clk 0:00:32]}  Rb6 {[%clk 0:01:08]} 35. Bf1 {[%clk 0:00:31]}  Rb3 {[%clk 0:01:05]} 36. Bd3 {[%clk 0:00:28]}  f5 {[%clk 0:01:04]} 37. Re2+ {[%clk 0:00:27]}  Kf6 {[%clk 0:01:02]} 38. Rd2 {[%clk 0:00:28]}  Ke5 {[%clk 0:01:02]} 39. Ba6 {[%clk 0:00:24]}  Ra3 {[%clk 0:00:59]} 40. Bc4 {[%clk 0:00:24]}  Rc3 {[%clk 0:00:59]} 41. Bf7 {[%clk 0:00:22]}  Ke4 {[%clk 0:00:55]} 42. Re2+ {[%clk 0:00:18]}  Kd3 {[%clk 0:00:54]} 43. Re7 {[%clk 0:00:18]}  g5 {[%clk 0:00:49]} 44. Bg8 {[%clk 0:00:17]}  g4 {[%clk 0:00:47]} 45. hxg4 {[%clk 0:00:16]}  fxg4 {[%clk 0:00:44]} 46. Bxh7+ {[%clk 0:00:16]}  Kc4 {[%clk 0:00:44]} 47. Rc7+ {[%clk 0:00:15]}  Kb3 {[%clk 0:00:45]} 48. Rg7 {[%clk 0:00:15]}  d3 {[%clk 0:00:42]} 49. Bxd3 {[%clk 0:00:11]}  Rxd3 {[%clk 0:00:41]} 50. Rxg4 {[%clk 0:00:12]}  Kc3 {[%clk 0:00:40]} 51. Re4 {[%clk 0:00:12]}  Rd4 {[%clk 0:00:38]} 52. Kf3 {[%clk 0:00:11]}  Rd1 {[%clk 0:00:34]} 53. g4 {[%clk 0:00:11]}  Kd3 {[%clk 0:00:34]} 54. Re8 {[%clk 0:00:10]}  Rf1+ {[%clk 0:00:30]} 55. Kg3 {[%clk 0:00:10]}  Kd4 {[%clk 0:00:31]} 56. Kh4 {[%clk 0:00:08]}  Kd5 {[%clk 0:00:31]} 57. Kh5 {[%clk 0:00:09]}  Kd6 {[%clk 0:00:31]} 58. g5 {[%clk 0:00:09]}  Kd7 {[%clk 0:00:27]} 59. Re2 {[%clk 0:00:09]}  Rf7 {[%clk 0:00:23]} 60. Kh6 {[%clk 0:00:05]}  Rf1 {[%clk 0:00:20]} 61. g6 {[%clk 0:00:05]}  Rh1+ {[%clk 0:00:19]} 62. Kg7 {[%clk 0:00:06]}  Rf1 {[%clk 0:00:20]} 63. Kh7 {[%clk 0:00:06]}  Rh1+ {[%clk 0:00:19]} 64. Kg8 {[%clk 0:00:06]}  Rg1 {[%clk 0:00:19]} 65. g7 {[%clk 0:00:07]}  Rg3 {[%clk 0:00:18]} 66. Re4 {[%clk 0:00:06]}  Rg1 {[%clk 0:00:16]} 67. Kf7 {[%clk 0:00:06]}  Rf1+ {[%clk 0:00:16]} 68. Kg6 {[%clk 0:00:07]}  Rg1+ {[%clk 0:00:16]} 69. Kf6 {[%clk 0:00:07]}  Rf1+ {[%clk 0:00:16]} 70. Kg5 {[%clk 0:00:08]} 1-0


[Site "https://www.chess.com"]

[Event "Titled Tuesday Blitz March 01 Early 2022"]
[White "Topalov, Aleksandar"]
[Black "Lauridsen, Jesper Morch"]
[WhiteFideId "925659"]
[BlackFideId "1401890"]
[WhiteElo "2098"]
[BlackElo "2169"]
[Result "1-0"]
[Round "02"]
[TimeControl "180+1"]
[Date "2022.03.01"]
[WhiteClock "0:01:17"]
[BlackClock "0:01:10"]

1. b3 {[%clk 0:03:00]}  a5 {[%clk 0:02:54]} 2. a3 {[%clk 0:03:00]}  b5 {[%clk 0:02:52]} 3. Bb2 {[%clk 0:02:59]}  Bb7 {[%clk 0:02:51]} 4. Nf3 {[%clk 0:02:59]}  b4 {[%clk 0:02:49]} 5. e3 {[%clk 0:02:54]}  Nf6 {[%clk 0:02:47]} 6. Be2 {[%clk 0:02:42]}  e6 {[%clk 0:02:46]} 7. O-O {[%clk 0:02:42]}  Be7 {[%clk 0:02:46]} 8. c4 {[%clk 0:02:36]}  bxc3 {[%clk 0:02:43]} 9. dxc3 {[%clk 0:02:36]}  d5 {[%clk 0:02:42]} 10. b4 {[%clk 0:02:34]}  a4 {[%clk 0:02:35]} 11. c4 {[%clk 0:02:29]}  dxc4 {[%clk 0:02:34]} 12. Bxc4 {[%clk 0:02:26]}  O-O {[%clk 0:02:33]} 13. Nc3 {[%clk 0:02:26]}  Qxd1 {[%clk 0:02:30]} 14. Rfxd1 {[%clk 0:02:25]}  Bxf3 {[%clk 0:02:31]} 15. gxf3 {[%clk 0:02:24]}  Nbd7 {[%clk 0:02:31]} 16. Rac1 {[%clk 0:02:15]}  c5 {[%clk 0:02:27]} 17. b5 {[%clk 0:02:00]}  Nb6 {[%clk 0:02:21]} 18. Ba2 {[%clk 0:01:57]}  Rfd8 {[%clk 0:02:17]} 19. e4 {[%clk 0:01:56]}  Nh5 {[%clk 0:01:31]} 20. Ne2 {[%clk 0:01:54]}  Rxd1+ {[%clk 0:01:21]} 21. Rxd1 {[%clk 0:01:53]}  Rd8 {[%clk 0:01:21]} 22. Rxd8+ {[%clk 0:01:53]}  Bxd8 {[%clk 0:01:21]} 23. Bc3 {[%clk 0:01:35]}  Bc7 {[%clk 0:01:19]} 24. Ba5 {[%clk 0:01:26]}  Kf8 {[%clk 0:01:19]} 25. Nc3 {[%clk 0:01:26]}  Nf4 {[%clk 0:01:18]} 26. Nxa4 {[%clk 0:01:22]}  Nxa4 {[%clk 0:01:17]} 27. Bxc7 {[%clk 0:01:22]}  Nc3 {[%clk 0:01:18]} 28. Bxf4 {[%clk 0:01:20]}  Nxa2 {[%clk 0:01:17]} 29. b6 {[%clk 0:01:20]}  Nc3 {[%clk 0:01:10]} 30. Bd6+ {[%clk 0:01:17]} 1-0


[Site "https://www.chess.com"]

[Event "Titled Tuesday Blitz March 01 Early 2022"]
[White "Urbina Quiroz, Edwin"]
[Black "Tymrakiewicz, Rafal"]
[WhiteFideId "6500650"]
[BlackFideId "1108832"]
[WhiteElo "2130"]
[BlackElo "2205"]
[Result "0-1"]
[Round "02"]
[TimeControl "180+1"]
[Date "2022.03.01"]
[WhiteClock "0:00:17"]
[BlackClock "0:00:45"]

1. e4 {[%clk 0:03:00]}  d5 {[%clk 0:02:59]} 2. exd5 {[%clk 0:03:00]}  Nf6 {[%clk 0:03:00]} 3. c4 {[%clk 0:02:59]}  c6 {[%clk 0:02:59]} 4. d4 {[%clk 0:02:59]}  cxd5 {[%clk 0:02:59]} 5. Nc3 {[%clk 0:02:59]}  g6 {[%clk 0:02:59]} 6. cxd5 {[%clk 0:02:54]}  Bg7 {[%clk 0:02:59]} 7. Be2 {[%clk 0:02:50]}  O-O {[%clk 0:02:59]} 8. Bf3 {[%clk 0:02:50]}  Nbd7 {[%clk 0:02:44]} 9. Nge2 {[%clk 0:02:50]}  Nb6 {[%clk 0:02:44]} 10. Nf4 {[%clk 0:02:50]}  h6 {[%clk 0:02:15]} 11. h4 {[%clk 0:02:16]}  h5 {[%clk 0:02:15]} 12. O-O {[%clk 0:02:14]}  Bg4 {[%clk 0:02:15]} 13. Re1 {[%clk 0:02:11]}  Re8 {[%clk 0:02:11]} 14. a4 {[%clk 0:02:10]}  Rc8 {[%clk 0:02:07]} 15. a5 {[%clk 0:02:07]}  Nc4 {[%clk 0:02:07]} 16. Qd3 {[%clk 0:01:54]}  Nxa5 {[%clk 0:01:55]} 17. d6 {[%clk 0:01:42]}  b6 {[%clk 0:01:46]} 18. dxe7 {[%clk 0:01:31]}  Rxe7 {[%clk 0:01:47]} 19. Rxe7 {[%clk 0:01:32]}  Qxe7 {[%clk 0:01:48]} 20. Nfd5 {[%clk 0:01:11]}  Qd8 {[%clk 0:01:37]} 21. Bg5 {[%clk 0:01:05]}  Bf5 {[%clk 0:01:36]} 22. Qa6 {[%clk 0:00:44]}  Nb3 {[%clk 0:01:26]} 23. Ra3 {[%clk 0:00:36]}  Nxd4 {[%clk 0:01:25]} 24. Qxc8 {[%clk 0:00:36]}  Nxf3+ {[%clk 0:01:17]} 25. gxf3 {[%clk 0:00:36]}  Bxc8 {[%clk 0:01:17]} 26. Rxa7 {[%clk 0:00:35]}  Be6 {[%clk 0:00:47]} 27. Kg2 {[%clk 0:00:17]}  Bxd5 {[%clk 0:00:45]} 0-1


[Site "https://www.chess.com"]

[Event "Titled Tuesday Blitz March 01 Early 2022"]
[White "Valle Maytin, Luis Enrique"]
[Black "Jarocka, Liwia"]
[WhiteFideId "3503666"]
[BlackFideId "21807558"]
[WhiteElo "2051"]
[BlackElo "1896"]
[Result "0-1"]
[Round "02"]
[TimeControl "180+1"]
[Date "2022.03.01"]
[WhiteClock "0:00:05"]
[BlackClock "0:00:25"]

1. e4 {[%clk 0:02:18]}  d6 {[%clk 0:02:58]} 2. d4 {[%clk 0:02:18]}  Nf6 {[%clk 0:02:58]} 3. Bd3 {[%clk 0:02:18]}  e5 {[%clk 0:02:58]} 4. c3 {[%clk 0:02:08]}  Be7 {[%clk 0:02:57]} 5. Nf3 {[%clk 0:02:07]}  Nbd7 {[%clk 0:02:57]} 6. O-O {[%clk 0:02:06]}  O-O {[%clk 0:02:57]} 7. Nbd2 {[%clk 0:02:06]}  c6 {[%clk 0:02:57]} 8. Qc2 {[%clk 0:02:06]}  Re8 {[%clk 0:02:55]} 9. b3 {[%clk 0:02:06]}  Bf8 {[%clk 0:02:54]} 10. Bb2 {[%clk 0:02:05]}  g6 {[%clk 0:02:55]} 11. c4 {[%clk 0:02:05]}  Bg7 {[%clk 0:02:54]} 12. dxe5 {[%clk 0:02:05]}  Nxe5 {[%clk 0:02:52]} 13. Nxe5 {[%clk 0:02:05]}  dxe5 {[%clk 0:02:53]} 14. Nf3 {[%clk 0:02:04]}  Nd7 {[%clk 0:02:51]} 15. Rad1 {[%clk 0:02:03]}  Qe7 {[%clk 0:02:51]} 16. a3 {[%clk 0:01:58]}  a5 {[%clk 0:02:50]} 17. Rfe1 {[%clk 0:01:50]}  Nc5 {[%clk 0:02:50]} 18. b4 {[%clk 0:01:47]}  axb4 {[%clk 0:02:40]} 19. axb4 {[%clk 0:01:45]}  Nxd3 {[%clk 0:02:39]} 20. Qxd3 {[%clk 0:01:38]}  Qxb4 {[%clk 0:02:38]} 21. Bc3 {[%clk 0:01:39]}  Qe7 {[%clk 0:02:35]} 22. Qb1 {[%clk 0:01:25]}  Bg4 {[%clk 0:02:33]} 23. Rd3 {[%clk 0:01:24]}  Bxf3 {[%clk 0:02:32]} 24. Rxf3 {[%clk 0:01:24]}  Reb8 {[%clk 0:02:26]} 25. Qb2 {[%clk 0:01:22]}  b5 {[%clk 0:02:25]} 26. c5 {[%clk 0:01:12]}  Qxc5 {[%clk 0:02:15]} 27. Bb4 {[%clk 0:01:12]}  Qc4 {[%clk 0:02:11]} 28. Rc3 {[%clk 0:01:12]}  Qe6 {[%clk 0:02:10]} 29. Rd3 {[%clk 0:01:08]}  Ra2 {[%clk 0:02:07]} 30. Qb1 {[%clk 0:01:07]}  Rba8 {[%clk 0:02:05]} 31. Rd6 {[%clk 0:01:04]}  Qc4 {[%clk 0:02:03]} 32. Red1 {[%clk 0:01:03]}  h5 {[%clk 0:01:41]} 33. Rc1 {[%clk 0:00:46]}  Qe2 {[%clk 0:01:37]} 34. Bc5 {[%clk 0:00:46]}  R8a4 {[%clk 0:01:21]} 35. Qb3 {[%clk 0:00:36]}  Qb2 {[%clk 0:01:08]} 36. Qd1 {[%clk 0:00:32]}  Rxe4 {[%clk 0:01:01]} 37. h3 {[%clk 0:00:28]}  Rf4 {[%clk 0:01:00]} 38. Rb1 {[%clk 0:00:23]}  Qc2 {[%clk 0:00:58]} 39. Qxc2 {[%clk 0:00:19]}  Rxc2 {[%clk 0:00:59]} 40. Rxc6 {[%clk 0:00:17]}  e4 {[%clk 0:00:55]} 41. Rxb5 {[%clk 0:00:16]}  Rf5 {[%clk 0:00:44]} 42. Rb8+ {[%clk 0:00:03]}  Kh7 {[%clk 0:00:44]} 43. Rbc8 {[%clk 0:00:04]}  Rc1+ {[%clk 0:00:38]} 44. Kh2 {[%clk 0:00:04]}  Be5+ {[%clk 0:00:35]} 45. g3 {[%clk 0:00:04]}  h4 {[%clk 0:00:30]} 46. Be3 {[%clk 0:00:05]}  Rxc6 {[%clk 0:00:28]} 47. Rxc6 {[%clk 0:00:05]}  Rf3 {[%clk 0:00:25]} 0-1


[Site "https://www.chess.com"]

[Event "Titled Tuesday Blitz March 01 Early 2022"]
[White "Vifleemskaia, Svetlana"]
[Black "Goltsev, Dmitry"]
[WhiteFideId "4129490"]
[BlackFideId "24176710"]
[WhiteElo "1901"]
[BlackElo "2273"]
[Result "0-1"]
[Round "02"]
[TimeControl "180+1"]
[Date "2022.03.01"]
[WhiteClock "0:00:01"]
[BlackClock "0:02:12"]

1. d4 {[%clk 0:03:00]}  Nf6 {[%clk 0:03:00]} 2. c4 {[%clk 0:02:53]}  e6 {[%clk 0:03:00]} 3. Nc3 {[%clk 0:02:53]}  Bb4 {[%clk 0:02:59]} 4. e3 {[%clk 0:02:52]}  b6 {[%clk 0:02:58]} 5. Ne2 {[%clk 0:02:52]}  Bb7 {[%clk 0:02:58]} 6. a3 {[%clk 0:02:52]}  Be7 {[%clk 0:02:58]} 7. b4 {[%clk 0:02:51]}  a5 {[%clk 0:02:58]} 8. b5 {[%clk 0:02:48]}  d5 {[%clk 0:02:56]} 9. Nf4 {[%clk 0:02:45]}  O-O {[%clk 0:02:54]} 10. a4 {[%clk 0:02:41]}  dxc4 {[%clk 0:02:53]} 11. Bxc4 {[%clk 0:02:40]}  Nbd7 {[%clk 0:02:47]} 12. O-O {[%clk 0:02:39]}  e5 {[%clk 0:02:46]} 13. Nfe2 {[%clk 0:02:16]}  exd4 {[%clk 0:02:46]} 14. exd4 {[%clk 0:02:12]}  Bd6 {[%clk 0:02:44]} 15. Bf4 {[%clk 0:02:07]}  Qe7 {[%clk 0:02:38]} 16. Re1 {[%clk 0:02:03]}  Bxf4 {[%clk 0:02:37]} 17. Nxf4 {[%clk 0:02:01]}  Qb4 {[%clk 0:02:37]} 18. Qb3 {[%clk 0:01:38]}  Qd6 {[%clk 0:02:36]} 19. Nfe2 {[%clk 0:01:35]}  Ng4 {[%clk 0:02:36]} 20. g3 {[%clk 0:01:21]}  Nxh2 {[%clk 0:02:34]} 21. Bd5 {[%clk 0:01:02]}  Nf3+ {[%clk 0:02:31]} 22. Kg2 {[%clk 0:00:57]}  Nxe1+ {[%clk 0:02:30]} 23. Rxe1 {[%clk 0:00:58]}  Bxd5+ {[%clk 0:02:29]} 24. Qxd5 {[%clk 0:00:58]}  Nf6 {[%clk 0:02:25]} 25. Qxd6 {[%clk 0:00:55]}  cxd6 {[%clk 0:02:26]} 26. Nf4 {[%clk 0:00:56]}  Rfe8 {[%clk 0:02:26]} 27. Rd1 {[%clk 0:00:54]}  Rac8 {[%clk 0:02:26]} 28. Ncd5 {[%clk 0:00:52]}  Nxd5 {[%clk 0:02:22]} 29. Nxd5 {[%clk 0:00:53]}  Rb8 {[%clk 0:02:22]} 30. Rc1 {[%clk 0:00:50]}  Re4 {[%clk 0:02:21]} 31. Rc6 {[%clk 0:00:43]}  Rxd4 {[%clk 0:02:20]} 32. Rxd6 {[%clk 0:00:43]}  Kf8 {[%clk 0:02:17]} 33. Rxb6 {[%clk 0:00:37]}  Rxb6 {[%clk 0:02:16]} 34. Nxb6 {[%clk 0:00:38]}  Ke7 {[%clk 0:02:15]} 35. Kf3 {[%clk 0:00:37]}  Kd6 {[%clk 0:02:12]} 36. Ke3 {[%clk 0:00:32]}  Kc5 {[%clk 0:02:11]} 37. Nc8 {[%clk 0:00:23]}  Rd8 {[%clk 0:02:12]} 38. Na7 {[%clk 0:00:19]}  Kb6 {[%clk 0:02:11]} 39. Nc6 {[%clk 0:00:18]}  Rd1 {[%clk 0:02:12]} 40. Ne5 {[%clk 0:00:13]}  f6 {[%clk 0:02:10]} 41. Nc4+ {[%clk 0:00:11]}  Kc5 {[%clk 0:02:11]} 42. Nxa5 {[%clk 0:00:10]}  Kb4 {[%clk 0:02:11]} 43. Nc6+ {[%clk 0:00:09]}  Kxa4 {[%clk 0:02:12]} 44. b6 {[%clk 0:00:05]}  Rb1 {[%clk 0:02:12]} 45. Nd8 {[%clk 0:00:01]}  Rxb6 {[%clk 0:02:12]} 0-1


[Site "https://www.chess.com"]

[Event "Titled Tuesday Blitz March 01 Early 2022"]
[White "Vlassov, Nikolai"]
[Black "Svane, Rasmus"]
[WhiteFideId "4103360"]
[BlackFideId "4657101"]
[WhiteElo "2630"]
[BlackElo "2915"]
[Result "1-0"]
[Round "02"]
[TimeControl "180+1"]
[Date "2022.03.01"]
[WhiteClock "0:00:15"]
[BlackClock "0:00:04"]

1. e4 {[%clk 0:03:00]}  c6 {[%clk 0:02:59]} 2. d4 {[%clk 0:03:00]}  d5 {[%clk 0:03:00]} 3. e5 {[%clk 0:03:01]}  Bf5 {[%clk 0:03:00]} 4. Nc3 {[%clk 0:03:01]}  e6 {[%clk 0:03:00]} 5. g4 {[%clk 0:03:01]}  Bg6 {[%clk 0:03:00]} 6. Nge2 {[%clk 0:03:02]}  c5 {[%clk 0:03:00]} 7. Be3 {[%clk 0:03:01]}  Nc6 {[%clk 0:03:00]} 8. dxc5 {[%clk 0:03:02]}  h5 {[%clk 0:02:57]} 9. Nd4 {[%clk 0:02:23]}  hxg4 {[%clk 0:02:55]} 10. Bb5 {[%clk 0:02:22]}  Ne7 {[%clk 0:02:53]} 11. Qxg4 {[%clk 0:02:21]}  Qc7 {[%clk 0:02:22]} 12. f4 {[%clk 0:02:10]}  O-O-O {[%clk 0:02:12]} 13. Bxc6 {[%clk 0:01:55]}  bxc6 {[%clk 0:02:05]} 14. b4 {[%clk 0:01:37]}  Nf5 {[%clk 0:02:02]} 15. Qe2 {[%clk 0:01:33]}  Rh3 {[%clk 0:01:54]} 16. Nxf5 {[%clk 0:01:18]}  Bxf5 {[%clk 0:01:55]} 17. O-O-O {[%clk 0:01:10]}  Qb7 {[%clk 0:01:44]} 18. a3 {[%clk 0:00:55]}  a5 {[%clk 0:01:44]} 19. Rd4 {[%clk 0:00:55]}  Qa7 {[%clk 0:01:21]} 20. Kd2 {[%clk 0:00:50]}  Be7 {[%clk 0:01:11]} 21. Na4 {[%clk 0:00:46]}  Kc7 {[%clk 0:01:05]} 22. Rb1 {[%clk 0:00:42]}  Rdh8 {[%clk 0:01:00]} 23. Bg1 {[%clk 0:00:34]}  Rxa3 {[%clk 0:00:34]} 24. b5 {[%clk 0:00:34]}  cxb5 {[%clk 0:00:35]} 25. Qxb5 {[%clk 0:00:33]}  Rb8 {[%clk 0:00:33]} 26. Qb6+ {[%clk 0:00:30]}  Qxb6 {[%clk 0:00:33]} 27. cxb6+ {[%clk 0:00:31]}  Kc6 {[%clk 0:00:31]} 28. c4 {[%clk 0:00:26]}  Bb4+ {[%clk 0:00:30]} 29. Rxb4 {[%clk 0:00:25]}  axb4 {[%clk 0:00:31]} 30. cxd5+ {[%clk 0:00:26]}  exd5 {[%clk 0:00:31]} 31. Rxb4 {[%clk 0:00:26]}  Ra2+ {[%clk 0:00:28]} 32. Kc3 {[%clk 0:00:23]}  Rh8 {[%clk 0:00:21]} 33. b7 {[%clk 0:00:22]}  Rh3+ {[%clk 0:00:20]} 34. Kd4 {[%clk 0:00:17]}  Rg3 {[%clk 0:00:20]} 35. hxg3 {[%clk 0:00:16]}  Rd2+ {[%clk 0:00:04]} 36. Kc3 {[%clk 0:00:15]}  Rc2+ {[%clk 0:00:04]} 37. Kb3 {[%clk 0:00:15]} 1-0


[Site "https://www.chess.com"]

[Event "Titled Tuesday Blitz March 01 Early 2022"]
[White "Weetik, Vjacheslav"]
[Black "Todorovic, Bojan"]
[WhiteFideId "4153472"]
[BlackFideId "917087"]
[WhiteElo "2469"]
[BlackElo "2266"]
[Result "1-0"]
[Round "02"]
[TimeControl "180+1"]
[Date "2022.03.01"]
[WhiteClock "0:00:14"]
[BlackClock "0:00:27"]

1. d4 {[%clk 0:02:59]}  g6 {[%clk 0:02:58]} 2. e4 {[%clk 0:02:59]}  Bg7 {[%clk 0:02:58]} 3. Nc3 {[%clk 0:03:00]}  a6 {[%clk 0:02:57]} 4. a4 {[%clk 0:02:59]}  d6 {[%clk 0:02:56]} 5. Nf3 {[%clk 0:02:59]}  Nc6 {[%clk 0:02:51]} 6. h3 {[%clk 0:02:49]}  e5 {[%clk 0:02:48]} 7. Bg5 {[%clk 0:02:32]}  Nge7 {[%clk 0:02:33]} 8. Nd5 {[%clk 0:02:25]}  O-O {[%clk 0:02:21]} 9. dxe5 {[%clk 0:02:24]}  h6 {[%clk 0:02:11]} 10. Bf6 {[%clk 0:02:09]}  Be6 {[%clk 0:01:48]} 11. exd6 {[%clk 0:02:01]}  cxd6 {[%clk 0:01:40]} 12. Bxg7 {[%clk 0:01:54]}  Kxg7 {[%clk 0:01:39]} 13. Be2 {[%clk 0:01:38]}  Bxd5 {[%clk 0:01:27]} 14. exd5 {[%clk 0:01:38]}  Qa5+ {[%clk 0:01:27]} 15. c3 {[%clk 0:01:33]}  Qxd5 {[%clk 0:01:26]} 16. O-O {[%clk 0:01:34]}  Ne5 {[%clk 0:01:24]} 17. Qc2 {[%clk 0:01:12]}  N7c6 {[%clk 0:01:18]} 18. Rad1 {[%clk 0:01:11]}  Qe6 {[%clk 0:01:18]} 19. Rfe1 {[%clk 0:01:09]}  Qf6 {[%clk 0:01:16]} 20. Rd5 {[%clk 0:00:57]}  Ne7 {[%clk 0:01:14]} 21. Rd2 {[%clk 0:00:52]}  Rac8 {[%clk 0:01:11]} 22. Red1 {[%clk 0:00:51]}  Nf5 {[%clk 0:01:07]} 23. Nd4 {[%clk 0:00:40]}  Nh4 {[%clk 0:00:58]} 24. Bf1 {[%clk 0:00:25]}  Rfe8 {[%clk 0:00:55]} 25. a5 {[%clk 0:00:20]}  Qg5 {[%clk 0:00:45]} 26. Kh1 {[%clk 0:00:19]}  Rc5 {[%clk 0:00:33]} 27. b4 {[%clk 0:00:17]}  Rc7 {[%clk 0:00:30]} 28. Qb2 {[%clk 0:00:17]}  Rce7 {[%clk 0:00:29]} 29. c4 {[%clk 0:00:17]}  Nc6 {[%clk 0:00:27]} 30. Ne6+ {[%clk 0:00:14]} 1-0


[Site "https://www.chess.com"]

[Event "Titled Tuesday Blitz March 01 Early 2022"]
[White "milenapn"]
[Black "Guseva, Marina"]
[BlackFideId "4149351"]
[WhiteElo "2140"]
[BlackElo "2232"]
[Result "0-1"]
[Round "02"]
[TimeControl "180+1"]
[Date "2022.03.01"]
[WhiteClock "0:00:01"]
[BlackClock "0:00:13"]

1. e4 {[%clk 0:02:25]}  c5 {[%clk 0:02:47]} 2. Nf3 {[%clk 0:02:24]}  d6 {[%clk 0:02:46]} 3. d4 {[%clk 0:02:14]}  cxd4 {[%clk 0:02:44]} 4. Nxd4 {[%clk 0:02:14]}  Nf6 {[%clk 0:02:43]} 5. Nc3 {[%clk 0:02:13]}  a6 {[%clk 0:02:43]} 6. h3 {[%clk 0:02:12]}  e5 {[%clk 0:02:42]} 7. Nde2 {[%clk 0:02:11]}  Be7 {[%clk 0:02:39]} 8. g4 {[%clk 0:02:11]}  h6 {[%clk 0:02:28]} 9. Bg2 {[%clk 0:02:10]}  b5 {[%clk 0:02:27]} 10. O-O {[%clk 0:02:03]}  Bb7 {[%clk 0:02:26]} 11. Ng3 {[%clk 0:02:00]}  g6 {[%clk 0:02:17]} 12. Be3 {[%clk 0:01:52]}  Nbd7 {[%clk 0:02:14]} 13. Qd2 {[%clk 0:01:48]}  h5 {[%clk 0:01:52]} 14. g5 {[%clk 0:01:42]}  Nh7 {[%clk 0:01:51]} 15. h4 {[%clk 0:01:34]}  Nhf8 {[%clk 0:01:49]} 16. f4 {[%clk 0:01:28]}  exf4 {[%clk 0:01:49]} 17. Bxf4 {[%clk 0:01:24]}  Ne6 {[%clk 0:01:48]} 18. Be3 {[%clk 0:00:52]}  Ne5 {[%clk 0:01:46]} 19. b3 {[%clk 0:00:46]}  O-O {[%clk 0:01:45]} 20. Nd5 {[%clk 0:00:43]}  Ng4 {[%clk 0:01:31]} 21. Bb6 {[%clk 0:00:38]}  Qd7 {[%clk 0:01:27]} 22. Nf5 {[%clk 0:00:27]}  Bxd5 {[%clk 0:01:22]} 23. Nxe7+ {[%clk 0:00:21]}  Qxe7 {[%clk 0:01:20]} 24. exd5 {[%clk 0:00:21]}  Ng7 {[%clk 0:01:01]} 25. Rae1 {[%clk 0:00:21]}  Qd7 {[%clk 0:00:58]} 26. Bd4 {[%clk 0:00:17]}  Rae8 {[%clk 0:00:49]} 27. Bh3 {[%clk 0:00:17]}  Rxe1 {[%clk 0:00:47]} 28. Qxe1 {[%clk 0:00:15]}  Re8 {[%clk 0:00:46]} 29. Qg3 {[%clk 0:00:16]}  Nf5 {[%clk 0:00:45]} 30. Qf4 {[%clk 0:00:14]}  Nxd4 {[%clk 0:00:38]} 31. Qxd4 {[%clk 0:00:15]}  Re5 {[%clk 0:00:37]} 32. Bxg4 {[%clk 0:00:15]}  hxg4 {[%clk 0:00:34]} 33. c4 {[%clk 0:00:13]}  bxc4 {[%clk 0:00:33]} 34. bxc4 {[%clk 0:00:14]}  Qe7 {[%clk 0:00:24]} 35. Qxg4 {[%clk 0:00:09]}  Re2 {[%clk 0:00:23]} 36. Qf3 {[%clk 0:00:07]}  Re4 {[%clk 0:00:20]} 37. Qf6 {[%clk 0:00:04]}  Rg4+ {[%clk 0:00:16]} 38. Kf2 {[%clk 0:00:01]}  Qe4 {[%clk 0:00:13]} 0-1


[Site "https://www.chess.com"]

[Event "Titled Tuesday Blitz March 01 Early 2022"]
[White "Alavi, Sayed Javad"]
[Black "Abdisalimov, Abdimalik"]
[WhiteFideId "12500607"]
[BlackFideId "14206323"]
[WhiteElo "2475"]
[BlackElo "2401"]
[Result "1-0"]
[Round "03"]
[TimeControl "180+1"]
[Date "2022.03.01"]
[WhiteClock "0:00:30"]
[BlackClock "0:00:03"]

1. e4 {[%clk 0:03:00]}  c5 {[%clk 0:02:56]} 2. Nf3 {[%clk 0:03:00]}  d6 {[%clk 0:02:56]} 3. d4 {[%clk 0:02:59]}  cxd4 {[%clk 0:02:57]} 4. Qxd4 {[%clk 0:02:59]}  Nc6 {[%clk 0:02:54]} 5. Bb5 {[%clk 0:02:55]}  a6 {[%clk 0:02:54]} 6. Bxc6+ {[%clk 0:02:54]}  bxc6 {[%clk 0:02:55]} 7. c4 {[%clk 0:02:53]}  e5 {[%clk 0:02:55]} 8. Qd3 {[%clk 0:02:51]}  Ne7 {[%clk 0:02:54]} 9. h4 {[%clk 0:02:26]}  f6 {[%clk 0:02:24]} 10. Nc3 {[%clk 0:02:02]}  Be6 {[%clk 0:02:22]} 11. Be3 {[%clk 0:01:52]}  d5 {[%clk 0:02:22]} 12. cxd5 {[%clk 0:01:49]}  cxd5 {[%clk 0:02:23]} 13. O-O-O {[%clk 0:01:48]}  d4 {[%clk 0:02:11]} 14. Bxd4 {[%clk 0:01:48]}  exd4 {[%clk 0:02:12]} 15. Nxd4 {[%clk 0:01:49]}  Bf7 {[%clk 0:01:54]} 16. Qg3 {[%clk 0:01:28]}  Qb8 {[%clk 0:01:47]} 17. f4 {[%clk 0:01:29]}  g6 {[%clk 0:01:47]} 18. Qg4 {[%clk 0:01:05]}  h5 {[%clk 0:01:33]} 19. Qf3 {[%clk 0:01:03]}  Bh6 {[%clk 0:01:31]} 20. g3 {[%clk 0:01:02]}  Ra7 {[%clk 0:01:28]} 21. e5 {[%clk 0:00:56]}  fxe5 {[%clk 0:00:15]} 22. Nc6 {[%clk 0:00:56]}  Qa8 {[%clk 0:00:14]} 23. Rd8+ {[%clk 0:00:51]}  Qxd8 {[%clk 0:00:13]} 24. Nxd8 {[%clk 0:00:52]}  Kxd8 {[%clk 0:00:14]} 25. Rd1+ {[%clk 0:00:41]}  Ke8 {[%clk 0:00:10]} 26. Qe3 {[%clk 0:00:41]}  Rd7 {[%clk 0:00:08]} 27. Qxe5 {[%clk 0:00:41]}  Rxd1+ {[%clk 0:00:06]} 28. Nxd1 {[%clk 0:00:42]}  Rh7 {[%clk 0:00:06]} 29. Qb8+ {[%clk 0:00:39]}  Kd7 {[%clk 0:00:06]} 30. Qb7+ {[%clk 0:00:36]}  Kd8 {[%clk 0:00:05]} 31. Qxa6 {[%clk 0:00:34]}  Nc8 {[%clk 0:00:03]} 32. Ne3 {[%clk 0:00:32]}  Be8 {[%clk 0:00:03]} 33. Qf6+ {[%clk 0:00:30]} 1-0


[Site "https://www.chess.com"]